bitfinex/quotes_SOLUSD_20241216
["timestamp","ask_amount","ask_price","bid_price","bid_amount"]
[1734372860822,10.48935263,219.61,219.55,24.81252686]
[1734372861027,23.776884,219.62,219.56,10.48935263]
[1734372861224,23.776884,219.62,219.56,16.93632686]
[1734372862757,34.26623663,219.62,219.56,6.44697423]
[1734372863147,10.48935263,219.59,219.56,6.44697423]
[1734372864635,10.48935263,219.6,219.56,6.44697423]
[1734372864971,10.48935263,219.59,219.55,1.5787]
[1734372866659,10.48935263,219.61,219.55,1.5787]
[1734372866866,23.776884,219.6,219.55,1.5787]
[1734372868154,23.776884,219.6,219.55,12.06805263]
[1734372869060,34.26623663,219.6,219.55,1.5787]
[1734372869356,23.776884,219.6,219.55,1.5787]
[1734372870169,7.09885068,219.66,219.55,12.06805263]
[1734372870363,23.776884,219.63,219.57,10.48935263]
[1734372871345,10.48935263,219.65,219.58,10.48935263]
[1734372871649,34.26623663,219.64,219.57,10.48935263]
[1734372873942,10.48935263,219.66,219.59,10.48935263]
[1734372874144,7.09885068,219.69,219.6,10.48935263]
[1734372874145,10.48935263,219.67,219.6,10.48935263]
[1734372874346,23.776884,219.66,219.6,10.48935263]
[1734372875149,34.26623663,219.66,219.59,10.48935263]
[1734372876368,23.776884,219.64,219.59,10.48935263]
[1734372876670,10.48935263,219.65,219.59,10.48935263]
[1734372876671,23.776884,219.65,219.59,10.48935263]
[1734372877475,34.26623663,219.65,219.58,41.59365263]
[1734372877843,23.776884,219.65,219.58,41.59365263]
[1734372878357,34.26623663,219.65,219.58,26.5504]
[1734372878549,23.776884,219.62,219.59,20.0]
[1734372878750,23.776884,219.62,219.58,20.0]
[1734372879145,23.776884,219.6,219.58,20.0]
[1734372879349,23.776884,219.6,219.55,8.02567423]
[1734372879653,10.48935263,219.6,219.55,8.02567423]
[1734372879853,10.48935263,219.59,219.55,8.02567423]
[1734372880070,10.48935263,219.6,219.55,8.02567423]
[1734372880381,23.776884,219.61,219.55,8.02567423]
[1734372880577,34.26623663,219.61,219.55,8.02567423]
[1734372880764,23.776884,219.61,219.55,8.02567423]
[1734372881078,34.26623663,219.61,219.55,8.02567423]
[1734372881262,10.48935263,219.6,219.55,8.02567423]
[1734372881851,34.26623663,219.61,219.55,8.02567423]
[1734372882548,23.776884,219.61,219.55,18.51502686]
[1734372883056,23.776884,219.61,219.55,8.02567423]
[1734372883464,23.776884,219.61,219.55,18.51502686]
[1734372883662,23.776884,219.65,219.57,10.48935263]
[1734372883882,23.776884,219.65,219.59,10.48935263]
[1734372884106,10.48935263,219.65,219.58,10.48935263]
[1734372884273,10.48935263,219.62,219.56,6.44697423]
[1734372884673,10.48935263,219.63,219.56,16.93632686]
[1734372884877,10.48935263,219.64,219.57,10.48935263]
[1734372885092,23.776884,219.63,219.57,10.48935263]
[1734372886389,10.48935263,219.66,219.58,10.48935263]
[1734372886697,7.09885068,219.69,219.58,10.48935263]
[1734372886698,34.26623663,219.65,219.58,10.48935263]
[1734372887303,10.48935263,219.64,219.57,10.48935263]
[1734372887482,10.48935263,219.65,219.58,10.48935263]
[1734372890276,10.48935263,219.64,219.57,10.48935263]
[1734372891417,10.48935263,219.65,219.58,10.48935263]
[1734372891609,17.58820331,219.65,219.58,10.48935263]
[1734372891827,10.48935263,219.65,219.58,10.48935263]
[1734372892192,7.09885068,219.66,219.6,15.04305263]
[1734372892409,7.09885068,219.68,219.64,10.48935263]
[1734372892586,7.09885068,219.69,219.64,10.48935263]
[1734372892790,7.09885068,219.69,219.52,7.8198]
[1734372892791,15.48935263,219.65,219.52,7.8198]
[1734372892994,7.12512487,219.6,219.52,7.8198]
[1734372893210,10.48935263,219.58,219.52,7.8198]
[1734372893513,34.26623663,219.58,219.52,7.8198]
[1734372893830,41.3913615,219.58,219.52,7.8198]
[1734372894289,7.12512487,219.57,219.52,7.8198]
[1734372894910,41.3913615,219.58,219.52,7.8198]
[1734372895312,23.776884,219.55,219.52,1.5939]
[1734372895509,30.90200887,219.55,219.52,1.5939]
[1734372897221,41.3913615,219.55,219.52,1.5939]
[1734372897911,7.12512487,219.55,219.52,1.5939]
[1734372898316,7.12512487,219.56,219.52,1.5939]
[1734372898518,7.12512487,219.57,219.52,1.5939]
[1734372898692,17.6144775,219.58,219.52,1.5939]
[1734372899116,10.48935263,219.57,219.52,1.5939]
[1734372899637,10.48935263,219.56,219.5,20.0]
[1734372899798,10.48935263,219.56,219.51,20.0]
[1734372900107,10.48935263,219.56,219.52,20.0]
[1734372900490,10.48935263,219.56,219.48,10.48935263]
[1734372900709,10.48935263,219.55,219.48,10.48935263]
[1734372901820,17.6144775,219.56,219.48,10.48935263]
[1734372902818,7.12512487,219.56,219.5,10.48935263]
[1734372903027,34.26623663,219.57,219.5,10.48935263]
[1734372903533,23.776884,219.57,219.5,10.48935263]
[1734372903706,34.26623663,219.57,219.5,10.48935263]
[1734372904417,10.48935263,219.59,219.51,10.48935263]
[1734372905095,23.776884,219.58,219.51,10.48935263]
[1734372905928,34.26623663,219.58,219.5,24.5557]
[1734372906233,23.776884,219.58,219.51,10.48935263]
[1734372906522,23.776884,219.54,219.47,7.7759]
[1734372906726,23.776884,219.54,219.47,18.26525263]
[1734372907100,34.26623663,219.54,219.47,18.26525263]
[1734372907423,10.48935263,219.53,219.47,7.7759]
[1734372908804,34.26623663,219.48,219.47,1.55]
[1734372909013,34.26623663,219.48,219.42,1.6457]
[1734372909310,10.48935263,219.46,219.42,1.6457]
[1734372909919,10.48935263,219.47,219.42,1.6457]
[1734372911326,23.776884,219.44,219.42,1.6457]
[1734372911904,7.12512487,219.5,219.42,1.6457]
[1734372912103,10.48935263,219.47,219.42,1.6457]
[1734372912328,23.776884,219.46,219.42,1.6457]
[1734372912827,10.48935263,219.48,219.42,1.6457]
[1734372913040,1.81164042,219.53,219.45,10.48935263]
[1734372913207,10.48935263,219.53,219.45,10.48935263]
[1734372913530,10.48935263,219.53,219.46,10.48935263]
[1734372913834,10.48935263,219.55,219.48,10.48935263]
[1734372914133,10.48935263,219.55,219.45,20.0]
[1734372914134,10.48935263,219.55,219.47,10.48935263]
[1734372914302,10.48935263,219.55,219.47,15.04575263]
[1734372915243,10.48935263,219.53,219.47,4.5564]
[1734372916716,10.48935263,219.54,219.47,15.04575263]
[1734372917029,23.776884,219.55,219.49,1.5518]
[1734372917410,10.50838028,219.54,219.49,1.5518]
[1734372917720,34.28526428,219.55,219.49,1.5518]
[1734372919126,23.776884,219.55,219.5,20.0]
[1734372920927,23.776884,219.61,219.51,6.5653]
[1734372921118,23.776884,219.57,219.51,6.5653]
[1734372921439,10.50838028,219.56,219.51,6.5653]
[1734372921636,10.50838028,219.53,219.49,1.5518]
[1734372922758,23.776884,219.52,219.49,1.5518]
[1734372923044,23.776884,219.53,219.49,1.5518]
[1734372923743,34.28526428,219.53,219.49,1.5518]
[1734372926047,23.776884,219.53,219.49,1.5518]
[1734372926343,34.28526428,219.53,219.49,1.5518]
[1734372928046,23.776884,219.53,219.49,1.5518]
[1734372928242,23.776884,219.54,219.49,1.5518]
[1734372929955,34.28526428,219.54,219.49,1.5518]
[1734372930344,23.776884,219.54,219.49,1.5518]
[1734372930855,23.776884,219.5,219.49,1.5518]
[1734372932362,10.51072056,219.52,219.49,1.5518]
[1734372932661,23.776884,219.51,219.49,1.5518]
[1734372933638,23.776884,219.53,219.49,1.5518]
[1734372933841,23.776884,219.53,219.5,20.0]
[1734372934148,23.776884,219.55,219.49,12.06252056]
[1734372935292,7.12512487,219.6,219.54,10.51072056]
[1734372935564,10.51072056,219.6,219.53,10.51072056]
[1734372935740,10.51072056,219.61,219.54,17.17492056]
[1734372936059,10.51072056,219.6,219.54,6.6642]
[1734372936263,14.25024974,219.66,219.54,6.6642]
[1734372936264,7.12512487,219.65,219.58,10.51072056]
[1734372936469,10.51072056,219.64,219.58,1.5698]
[1734372936674,10.51072056,219.63,219.59,20.0]
[1734372937065,2.72208784,219.67,219.6,20.0]
[1734372937375,10.51072056,219.62,219.6,20.0]
[1734372937576,10.51072056,219.62,219.59,20.0]
[1734372937746,7.12512487,219.69,219.59,20.0]
[1734372937953,10.51072056,219.65,219.61,20.0]
[1734372938156,8.97891199,219.71,219.62,20.0]
[1734372938376,10.51072056,219.69,219.63,6.4827]
[1734372938559,10.51072056,219.69,219.66,20.0]
[1734372938877,10.51072056,219.68,219.66,20.0]
[1734372939086,10.51072056,219.69,219.66,20.0]
[1734372939387,7.12512487,219.79,219.71,20.0]
[1734372939551,28.39540275,219.82,219.71,20.0]
[1734372939552,10.51072056,219.76,219.71,20.0]
[1734372939876,10.51072056,219.75,219.72,20.0]
[1734372940173,10.51072056,219.75,219.71,20.0]
[1734372940374,10.51072056,219.72,219.68,20.0]
[1734372940577,10.51072056,219.69,219.63,226.6827]
[1734372940761,10.51072056,219.64,219.61,1.511]
[1734372941081,10.51072056,219.62,219.61,1.511]
[1734372941758,34.28760456,219.62,219.61,1.511]
[1734372942157,23.776884,219.61,219.58,6.3264]
[1734372942479,16.41278135,219.59,219.56,1.5584]
[1734372942654,23.776884,219.61,219.56,1.5584]
[1734372942655,16.41278135,219.57,219.56,1.5584]
[1734372942860,40.18966535,219.57,219.56,1.5584]
[1734372943278,23.776884,219.56,219.52,6.3474]
[1734372943478,16.41278135,219.55,219.52,6.3474]
[1734372944185,16.41278135,219.54,219.52,6.3474]
[1734372944391,23.776884,219.55,219.54,20.0]
[1734372944558,16.41278135,219.6,219.55,20.0]
[1734372944879,23.776884,219.59,219.55,24.5547]
[1734372945064,40.18966535,219.59,219.55,24.5547]
[1734372945269,23.776884,219.59,219.55,24.5547]
[1734372945676,23.776884,219.59,219.56,20.0]
[1734372946486,16.41278135,219.62,219.55,40.96748135]
[1734372946671,40.18966535,219.61,219.56,20.0]
[1734372946872,16.41278135,219.6,219.57,20.0]
[1734372947071,23.776884,219.59,219.57,20.0]
[1734372947268,23.776884,219.59,219.56,20.0]
[1734372947673,23.776884,219.6,219.56,20.0]
[1734372948188,40.18612043,219.6,219.56,20.0]
[1734372948385,16.40923643,219.58,219.55,24.5547]
[1734372948588,16.40923643,219.56,219.55,20.0]
[1734372948774,16.40923643,219.57,219.55,20.0]
[1734372948972,16.40923643,219.57,219.55,20.83287243]
[1734372950068,16.40923643,219.56,219.55,20.83287243]
[1734372950468,16.40923643,219.57,219.55,20.83287243]
[1734372950662,16.40923643,219.58,219.55,20.83287243]
[1734372950865,23.776884,219.57,219.55,20.83287243]
[1734372951067,16.40923643,219.62,219.57,20.0]
[1734372951789,16.40923643,219.62,219.58,20.0]
[1734372951969,2.69443992,219.69,219.58,20.0]
[1734372952178,16.40923643,219.64,219.59,1.5533]
[1734372952368,16.40923643,219.64,219.59,21.5533]
[1734372952690,16.40923643,219.65,219.59,21.5533]
[1734372953166,7.12512487,219.74,219.59,160.13619137]
[1734372953487,16.40923643,219.67,219.59,164.0072]
[1734372953866,16.40923643,219.66,219.59,164.0072]
[1734372954081,8.97710016,219.74,219.59,164.0072]
[1734372954284,16.40923643,219.67,219.59,164.0072]
[1734372954584,23.776884,219.66,219.59,164.0072]
[1734372954965,40.18612043,219.66,219.59,164.0072]
[1734372956266,16.40923643,219.65,219.59,164.0072]
[1734372956694,23.776884,219.64,219.59,164.0072]
[1734372957189,40.18612043,219.66,219.59,164.0072]
[1734372957365,23.776884,219.66,219.59,164.0072]
[1734372957694,23.776884,219.66,219.59,26.1072]
[1734372957988,40.18612043,219.66,219.59,26.1072]
[1734372958764,16.40923643,219.65,219.59,26.1072]
[1734372959474,23.776884,219.66,219.59,26.1072]
[1734372959475,16.40923643,219.63,219.59,26.1072]
[1734372959678,16.40923643,219.62,219.59,1.5533]
[1734372959873,16.40923643,219.61,219.59,1.5533]
[1734372960974,40.18612043,219.6,219.59,1.5533]
[1734372961192,40.18612043,219.6,219.53,1.6258]
[1734372961382,16.40923643,219.59,219.53,1.6258]
[1734372962372,16.40923643,219.59,219.54,4.5549]
[1734372963171,16.40923643,219.62,219.56,20.0]
[1734372963493,23.776884,219.63,219.58,20.0]
[1734372963798,40.18612043,219.63,219.58,20.0]
[1734372964694,16.40923643,219.62,219.58,20.0]
[1734372964884,16.40923643,219.59,219.53,6.1809]
[1734372965083,16.40923643,219.54,219.53,1.6258]
[1734372965293,16.40923643,219.54,219.46,12.5355]
[1734372965593,23.776884,219.5,219.46,12.5355]
[1734372965799,40.18612043,219.5,219.46,12.5355]
[1734372965979,16.40923643,219.49,219.46,12.5355]
[1734372966485,40.18612043,219.5,219.46,12.5355]
[1734372967076,16.40923643,219.52,219.46,12.5355]
[1734372967285,23.776884,219.51,219.46,12.5355]
[1734372967592,40.18612043,219.51,219.49,20.0]
[1734372971377,23.776884,219.51,219.49,20.0]
[1734372971695,23.776884,219.52,219.49,20.0]
[1734372972597,16.40923643,219.55,219.49,20.0]
[1734372972807,16.40923643,219.57,219.5,20.0]
[1734372974379,40.18612043,219.56,219.5,24.5558]
[1734372974981,16.40923643,219.55,219.5,24.5558]
[1734372975180,16.40923643,219.53,219.47,137.9]
[1734372975382,23.776884,219.51,219.46,12.5354]
[1734372976198,40.18612043,219.51,219.46,12.5354]
[1734372976394,23.776884,219.49,219.46,6.1864]
[1734372977001,23.776884,219.49,219.46,1.6299]
[1734372977310,40.18612043,219.47,219.43,4.5572]
[1734372977807,23.776884,219.45,219.41,8.017]
[1734372978112,40.18612043,219.45,219.41,1.5039]
[1734372978689,16.40923643,219.46,219.41,1.5039]
[1734372979084,23.776884,219.45,219.43,20.0]
[1734372981292,23.776884,219.46,219.43,20.0]
[1734372982122,16.40923643,219.48,219.44,20.0]
[1734372982791,16.40923643,219.46,219.44,20.0]
[1734372983209,23.776884,219.45,219.4,20.0]
[1734372984399,23.776884,219.46,219.41,4.5576]
[1734372984600,23.776884,219.47,219.41,4.5576]
[1734372984794,23.776884,219.49,219.43,20.0]
[1734372985600,23.776884,219.49,219.44,4.557]
[1734372986324,40.18612043,219.49,219.44,4.557]
[1734372986707,23.776884,219.46,219.4,142.4576]
[1734372986913,40.18612043,219.46,219.4,4.5576]
[1734372987126,23.776884,219.43,219.4,4.5576]
[1734372987740,23.776884,219.43,219.36,17.1754]
[1734372987741,23.776884,219.45,219.36,155.75897917]
[1734372987890,23.776884,219.45,219.37,4.5585]
[1734372988601,23.776884,219.45,219.39,20.0]
[1734372988824,23.776884,219.45,219.4,4.5578]
[1734372989292,40.18612043,219.45,219.4,4.5578]
[1734372989719,16.40923643,219.44,219.4,4.5578]
[1734372989993,23.776884,219.43,219.39,20.0]
[1734372990305,23.776884,219.43,219.36,150.5169]
[1734372990306,40.18612043,219.41,219.36,12.6169]
[1734372990487,16.40923643,219.41,219.36,6.1038]
[1734372990692,23.776884,219.4,219.36,6.1038]
[1734372990947,40.18612043,219.4,219.32,1.6127]
[1734372991233,40.18612043,219.4,219.32,6.172]
[1734372991595,23.776884,219.4,219.32,6.172]
[1734372992204,16.40923643,219.39,219.35,20.0]
[1734372992407,16.40923643,219.38,219.35,20.0]
[1734372992634,23.776884,219.37,219.35,20.0]
[1734372992870,23.776884,219.37,219.32,6.172]
[1734372994199,23.776884,219.37,219.35,20.0]
[1734372994737,40.18612043,219.37,219.3,20.0]
[1734372996141,23.776884,219.37,219.31,4.5597]
[1734372996299,23.776884,219.39,219.31,24.5597]
[1734372996824,16.40923643,219.41,219.31,24.5597]
[1734372997024,1.2491,219.44,219.31,24.5597]
[1734372997025,16.40923643,219.42,219.31,24.5597]
[1734372997224,16.40923643,219.42,219.34,20.0]
[1734372997564,16.40923643,219.4,219.34,20.0]
[1734372997716,16.40923643,219.38,219.33,4.5593]
[1734372997919,16.40923643,219.42,219.33,4.5593]
[1734372998175,16.40923643,219.43,219.34,20.0]
[1734372998315,16.40923643,219.44,219.35,21.5045]
[1734372998523,16.40923643,219.41,219.36,20.0]
[1734372999054,16.40923643,219.43,219.36,20.0]
[1734372999265,16.40923643,219.44,219.38,20.0]
[1734372999552,23.776884,219.42,219.36,20.0]
[1734372999922,23.776884,219.43,219.36,20.0]
[1734373000327,23.776884,219.43,219.38,20.0]
[1734373000548,40.18612043,219.43,219.38,20.0]
[1734373000725,23.776884,219.43,219.38,20.0]
[1734373001325,16.40923643,219.41,219.38,20.0]
[1734373001523,23.776884,219.41,219.38,20.0]
[1734373001945,40.18612043,219.43,219.38,20.0]
[1734373002130,16.40923643,219.42,219.38,20.0]
[1734373002329,23.776884,219.41,219.38,20.0]
[1734373002554,23.776884,219.43,219.38,20.0]
[1734373002735,23.776884,219.45,219.39,4.558]
[1734373002911,23.776884,219.45,219.39,24.558]
[1734373003120,87.3416,219.54,219.4,20.0]
[1734373003121,16.40923643,219.48,219.4,20.0]
[1734373003618,16.40923643,219.49,219.42,20.0]
[1734373003918,16.40923643,219.5,219.42,20.0]
[1734373004135,16.40923643,219.5,219.42,24.5573]
[1734373005177,40.18612043,219.49,219.42,24.5573]
[1734373009252,16.40923643,219.48,219.42,24.5573]
[1734373009567,40.18612043,219.45,219.39,24.558]
[1734373009976,40.18612043,219.45,219.39,4.558]
[1734373011045,40.18612043,219.45,219.39,24.558]
[1734373012052,23.776884,219.45,219.39,24.558]
[1734373012671,16.40923643,219.46,219.4,20.0]
[1734373012672,40.18612043,219.46,219.4,20.0]
[1734373012875,23.776884,219.44,219.4,20.0]
[1734373013376,16.40923643,219.43,219.39,4.558]
[1734373013552,23.776884,219.42,219.39,4.558]
[1734373014657,23.776884,219.42,219.39,24.558]
[1734373015078,40.18612043,219.43,219.39,24.558]
[1734373015577,23.776884,219.43,219.39,24.558]
[1734373016091,23.776884,219.44,219.39,24.558]
[1734373017073,40.18612043,219.46,219.39,24.558]
[1734373017282,16.40923643,219.45,219.39,24.558]
[1734373017468,23.776884,219.44,219.39,24.558]
[1734373018066,23.776884,219.45,219.39,24.558]
[1734373018857,23.776884,219.45,219.39,24.058]
[1734373019979,40.18612043,219.45,219.39,24.058]
[1734373020769,23.776884,219.45,219.39,24.058]
[1734373020978,40.18612043,219.45,219.39,24.058]
[1734373021491,16.40923643,219.48,219.41,4.5576]
[1734373021667,16.40923643,219.52,219.44,20.0]
[1734373021980,16.40923643,219.53,219.44,26.256]
[1734373022168,16.40923643,219.52,219.44,26.256]
[1734373022383,16.40923643,219.51,219.44,26.256]
[1734373022581,16.40923643,219.52,219.44,26.256]
[1734373022771,7.10893727,219.57,219.46,20.0]
[1734373022973,16.40923643,219.55,219.48,20.0]
[1734373023166,16.40923643,219.57,219.48,20.0]
[1734373023365,16.40923643,219.57,219.49,1.6062]
[1734373023578,16.40923643,219.59,219.49,1.6062]
[1734373023780,16.40923643,219.57,219.49,1.6062]
[1734373023967,16.40923643,219.57,219.52,20.0]
[1734373024781,16.40923643,219.57,219.45,9.1136]
[1734373024782,23.776884,219.52,219.47,24.5564]
[1734373025077,16.40923643,219.51,219.47,24.5564]
[1734373025470,23.776884,219.5,219.47,24.5564]
[1734373025863,16.40923643,219.52,219.47,24.5564]
[1734373026057,23.776884,219.52,219.47,24.5564]
[1734373026262,23.776884,219.53,219.47,24.5564]
[1734373027583,16.40923643,219.54,219.47,162.4564]
[1734373027885,16.40923643,219.51,219.47,162.4564]
[1734373028274,16.40923643,219.49,219.44,6.256]
[1734373028475,16.40923643,219.47,219.43,6.1542]
[1734373028682,23.776884,219.46,219.43,6.1542]
[1734373028978,23.776884,219.47,219.43,6.1542]
[1734373030480,40.18612043,219.49,219.43,1.5972]
[1734373030786,16.40923643,219.46,219.44,20.0]
[1734373032173,40.18612043,219.47,219.44,20.0]
[1734373032374,23.776884,219.47,219.44,20.0]
[1734373032578,23.776884,219.47,219.43,1.5972]
[1734373032579,16.40923643,219.49,219.43,21.5972]
[1734373032765,40.18612043,219.48,219.46,20.0]
[1734373032966,40.18612043,219.47,219.43,1.5972]
[1734373033185,16.40923643,219.45,219.43,21.5972]
[1734373033984,23.776884,219.46,219.43,21.5972]
[1734373034286,16.40923643,219.44,219.43,20.0]
[1734373034481,23.776884,219.43,219.42,20.0]
[1734373034686,40.18612043,219.43,219.42,20.0]
[1734373034873,23.776884,219.43,219.42,20.0]
[1734373035268,7.10893727,219.52,219.42,20.0]
[1734373035588,16.40923643,219.46,219.42,20.0]
[1734373035801,16.40923643,219.5,219.43,4.5572]
[1734373036083,16.40923643,219.52,219.46,21.5207]
[1734373037171,23.776884,219.5,219.46,21.5207]
[1734373037504,23.776884,219.5,219.46,26.0773]
[1734373038589,16.40923643,219.53,219.49,20.0]
[1734373038890,16.40923643,219.55,219.49,20.0]
[1734373039194,16.40923643,219.55,219.5,20.0]
[1734373039392,16.40923643,219.53,219.5,20.0]
[1734373039687,7.10893727,219.6,219.49,20.0]
[1734373039688,16.40923643,219.51,219.49,20.0]
[1734373040272,40.18612043,219.51,219.46,1.5207]
[1734373041162,16.40923643,219.51,219.46,1.5207]
[1734373041383,16.40923643,219.51,219.49,20.0]
[1734373041584,16.40923643,219.52,219.49,20.0]
[1734373041798,16.40923643,219.52,219.46,6.0771]
[1734373041799,16.40923643,219.52,219.46,1.5207]
[1734373041999,16.40923643,219.47,219.46,1.5207]
[1734373042699,16.40923643,219.47,219.41,7.7505]
[1734373043405,16.40923643,219.46,219.44,20.0]
[1734373043587,1.85390172,219.54,219.41,12.308]
[1734373043588,16.40923643,219.45,219.41,12.308]
[1734373044418,16.40923643,219.46,219.41,12.308]
[1734373044784,16.40923643,219.46,219.44,20.0]
[1734373045476,23.776884,219.48,219.44,20.0]
[1734373046015,40.18612043,219.48,219.44,20.0]
[1734373047099,23.776884,219.48,219.44,20.0]
[1734373047304,40.18612043,219.48,219.44,20.0]
[1734373047482,16.40923643,219.47,219.44,20.0]
[1734373049114,16.40923643,219.46,219.44,20.0]
[1734373049281,16.40923643,219.47,219.44,20.0]
[1734373049915,16.40923643,219.49,219.44,20.0]
[1734373050119,40.18612043,219.48,219.44,20.0]
[1734373050288,16.40923643,219.5,219.44,24.557]
[1734373050612,23.5181737,219.53,219.44,24.557]
[1734373050907,16.40923643,219.52,219.44,24.557]
[1734373051299,23.5181737,219.53,219.44,162.457]
[1734373051626,30.27598303,219.56,219.46,139.5269]
[1734373051627,16.40923643,219.56,219.46,139.5269]
[1734373051906,16.40923643,219.56,219.49,20.0]
[1734373052215,16.40923643,219.55,219.49,20.0]
[1734373052428,7.10893727,219.59,219.5,24.5558]
[1734373052586,7.10893727,219.6,219.54,20.0]
[1734373052787,23.5181737,219.61,219.54,20.0]
[1734373053010,16.40923643,219.6,219.54,20.0]
[1734373053212,7.10893727,219.61,219.55,1.5511]
[1734373053435,7.10893727,219.65,219.56,0.68294626]
[1734373053730,16.40923643,219.64,219.59,20.0]
[1734373053926,7.10893727,219.66,219.59,20.0]
[1734373054095,23.5181737,219.66,219.6,20.0]
[1734373054292,16.40923643,219.66,219.6,20.0]
[1734373054616,16.40923643,219.67,219.6,24.5537]
[1734373054789,16.40923643,219.63,219.6,24.5537]
[1734373054993,16.40923643,219.63,219.6,20.0]
[1734373055201,1.84552881,219.72,219.58,20.0]
[1734373055437,16.40923643,219.62,219.59,20.0]
[1734373055631,16.40923643,219.6,219.59,20.0]
[1734373055933,16.40923643,219.63,219.55,164.0058]
[1734373056136,23.776884,219.63,219.55,164.0058]
[1734373056428,40.18612043,219.63,219.55,164.0058]
[1734373056826,23.776884,219.61,219.55,164.0058]
[1734373057331,16.40923643,219.66,219.59,157.9]
[1734373057628,16.40923643,219.67,219.63,20.0]
[1734373058351,16.40923643,219.66,219.63,20.0]
[1734373058928,16.40923643,219.65,219.63,20.0]
[1734373059113,16.40923643,219.64,219.63,20.0]
[1734373059311,40.18612043,219.64,219.6,144.3448]
[1734373059503,40.18612043,219.61,219.6,137.9]
[1734373059913,23.776884,219.6,219.57,4.5541]
[1734373060116,40.18612043,219.6,219.57,4.5541]
[1734373060905,16.40923643,219.58,219.55,1.5511]
[1734373061108,23.776884,219.56,219.55,1.5511]
[1734373062318,23.53634701,219.67,219.55,1.5511]
[1734373062319,23.776884,219.6,219.55,1.5511]
[1734373062524,40.18612043,219.58,219.57,20.0]
[1734373064541,40.18612043,219.58,219.55,21.5511]
[1734373064708,23.776884,219.56,219.55,1.5511]
[1734373068840,40.18612043,219.56,219.55,1.5511]
[1734373069010,40.18612043,219.56,219.49,7.7139]
[1734373069216,16.40923643,219.52,219.49,7.7139]
[1734373070110,16.40923643,219.51,219.49,7.7139]
[1734373071115,23.776884,219.52,219.51,20.0]
[1734373071631,40.18612043,219.52,219.51,20.0]
[1734373073128,23.776884,219.52,219.51,20.0]
[1734373075927,16.40923643,219.53,219.51,20.0]
[1734373076144,40.18612043,219.53,219.52,20.0]
[1734373076748,23.776884,219.52,219.5,20.0]
[1734373076927,16.40923643,219.51,219.5,20.0]
[1734373077142,40.18612043,219.51,219.47,24.5562]
[1734373077338,23.776884,219.5,219.47,24.5562]
[1734373078132,40.18612043,219.5,219.47,24.5562]
[1734373078855,23.776884,219.5,219.47,24.5562]
[1734373079065,40.18612043,219.5,219.47,24.5562]
[1734373080568,40.18612043,219.48,219.47,20.0]
[1734373081053,40.18612043,219.48,219.44,6.2148]
[1734373081243,16.40923643,219.51,219.44,144.1148]
[1734373081440,23.776884,219.5,219.44,144.1148]
[1734373082249,40.18612043,219.5,219.47,20.0]
[1734373082452,16.40923643,219.49,219.47,20.0]
[1734373083353,23.776884,219.48,219.47,20.0]
[1734373083557,40.18612043,219.48,219.47,20.0]
[1734373083933,40.18612043,219.48,219.44,139.5578]
[1734373084258,23.776884,219.46,219.44,1.6578]
[1734373084435,16.40923643,219.45,219.41,4.5576]
[1734373084635,40.18612043,219.44,219.41,4.5576]
[1734373084957,23.776884,219.44,219.41,4.5576]
[1734373085154,23.776884,219.44,219.39,8.0383]
[1734373085541,23.776884,219.45,219.39,8.0383]
[1734373086162,23.776884,219.45,219.42,20.0]
[1734373089161,16.40923643,219.51,219.46,20.0]
[1734373089464,16.40923643,219.52,219.46,20.0]
[1734373089949,16.40923643,219.5,219.46,20.0]
[1734373090143,10.51217573,219.49,219.46,20.0]
[1734373090356,10.51217573,219.47,219.42,20.0]
[1734373090650,34.28905973,219.48,219.42,20.0]
[1734373091440,10.51217573,219.47,219.42,20.0]
[1734373091640,34.28905973,219.48,219.42,20.0]
[1734373092042,40.20489023,219.48,219.42,20.0]
[1734373092243,23.776884,219.48,219.43,4.5572]